[Event "Early-Titled-Tuesday-Blitz-May-14-2024"]
[Site "Chess.com"]
[Date "2024.05.14"]
[Round "4"]
[White "yobdc"]
[Black "nitpicker"]
[Result "1-0"]
[WhiteElo "2504"]
[BlackElo "2280"]
[TimeControl "180+1"]
[EndTime "8:41:12 PDT"]
[Termination "yobdc won on time"]

1. e4 {[%clk 0:03:00.9]} 1... c5 {[%clk 0:02:59.1]} 2. Nf3 {[%clk 0:03:00.8]}
2... Nc6 {[%clk 0:02:59.2]} 3. Bb5 {[%clk 0:03:00.5]} 3... Nf6 {[%clk
0:02:58.9]} 4. Bxc6 {[%clk 0:02:53.7]} 4... dxc6 {[%clk 0:02:58.3]} 5. d3 {[%clk
0:02:54]} 5... g6 {[%clk 0:02:57.9]} 6. h3 {[%clk 0:02:53.9]} 6... Bg7 {[%clk
0:02:57.7]} 7. Nc3 {[%clk 0:02:49.1]} 7... O-O {[%clk 0:02:57.1]} 8. Be3 {[%clk
0:02:48.9]} 8... Nd7 {[%clk 0:02:51.5]} 9. Qd2 {[%clk 0:02:48.5]} 9... e5 {[%clk
0:02:47.4]} 10. O-O {[%clk 0:02:42.2]} 10... Qe7 {[%clk 0:02:43.3]} 11. Bh6
{[%clk 0:02:32.8]} 11... Re8 {[%clk 0:02:43.3]} 12. Nh2 {[%clk 0:02:30.8]} 12...
Nf8 {[%clk 0:02:31.4]} 13. Bxg7 {[%clk 0:02:27.4]} 13... Kxg7 {[%clk 0:02:31.1]}
14. f4 {[%clk 0:02:25.1]} 14... f6 {[%clk 0:02:21]} 15. Kh1 {[%clk 0:01:54.6]}
15... Bd7 {[%clk 0:01:46]} 16. Nd1 {[%clk 0:01:36.5]} 16... b6 {[%clk 0:01:37]}
17. Ne3 {[%clk 0:01:36.4]} 17... exf4 {[%clk 0:01:22.6]} 18. Rxf4 {[%clk
0:01:36.1]} 18... Ne6 {[%clk 0:01:22.7]} 19. Rf2 {[%clk 0:01:35.1]} 19... h5
{[%clk 0:01:12.8]} 20. g4 {[%clk 0:01:15.6]} 20... h4 {[%clk 0:01:12.1]} 21. Nf3
{[%clk 0:01:05.5]} 21... Qd6 {[%clk 0:00:59.7]} 22. Rg1 {[%clk 0:00:54.5]} 22...
Nf4 {[%clk 0:00:46.2]} 23. e5 {[%clk 0:00:16.3]} 23... fxe5 {[%clk 0:00:32.2]}
24. Nc4 {[%clk 0:00:14.3]} 24... Qd5 {[%clk 0:00:27.6]} 25. Ne3 {[%clk
0:00:14.5]} 25... Qd6 {[%clk 0:00:23.7]} 26. Ng5 {[%clk 0:00:14.1]} 26... Qe7
{[%clk 0:00:18.7]} 27. Ne4 {[%clk 0:00:05.6]} 27... Nxh3 {[%clk 0:00:17.7]} 28.
g5 {[%clk 0:00:03.7]} 28... Nxf2+ {[%clk 0:00:15.1]} 29. Qxf2 {[%clk 0:00:04.6]}
29... Rf8 {[%clk 0:00:14.6]} 30. Nf6 {[%clk 0:00:04.9]} 30... Rxf6 {[%clk
0:00:13.3]} 31. gxf6+ {[%clk 0:00:04.8]} 31... Qxf6 {[%clk 0:00:13.4]} 32. Qg2
{[%clk 0:00:04.6]} 32... h3 {[%clk 0:00:10.4]} 33. Qe4 {[%clk 0:00:04.7]} 33...
Rh8 {[%clk 0:00:03.7]} 34. Nc4 {[%clk 0:00:03.4]} 34... Rh5 {[%clk 0:00:03]} 35.
Re1 {[%clk 0:00:02.3]} 35... Be6 {[%clk 0:00:02.5]} 36. Ne3 {[%clk 0:00:02.1]}
36... Bd5 {[%clk 0:00:01.1]} 37. Nxd5 {[%clk 0:00:02]} 37... cxd5 {[%clk
0:00:01.6]} 38. Qxd5 {[%clk 0:00:02.9]} 38... h2 {[%clk 0:00:01.4]} 39. Qe4
{[%clk 0:00:02.5]} 39... Qf2 {[%clk 0:00:00.6]} 40. Qe2 {[%clk 0:00:01.9]} 1-0

[Event "Early-Titled-Tuesday-Blitz-May-14-2024"]
[Site "Chess.com"]
[Date "2024.05.14"]
[Round "4"]
[White "yuriydovzik"]
[Black "David_ATM"]
[Result "0-1"]
[WhiteElo "2150"]
[BlackElo "2454"]
[TimeControl "180+1"]
[EndTime "8:41:13 PDT"]
[Termination "David_ATM won on time"]

1. b3 {[%clk 0:03:00.9]} 1... Nf6 {[%clk 0:02:58.8]} 2. Bb2 {[%clk 0:02:59.9]}
2... g6 {[%clk 0:02:58.9]} 3. d4 {[%clk 0:02:57.5]} 3... Bg7 {[%clk 0:02:59.3]}
4. Nf3 {[%clk 0:02:54]} 4... O-O {[%clk 0:02:59]} 5. g3 {[%clk 0:02:51.5]} 5...
b6 {[%clk 0:02:58.8]} 6. Bg2 {[%clk 0:02:50.8]} 6... Bb7 {[%clk 0:02:59.5]} 7.
O-O {[%clk 0:02:50.6]} 7... d5 {[%clk 0:02:58.7]} 8. c4 {[%clk 0:02:45.7]} 8...
e6 {[%clk 0:02:58.1]} 9. Nbd2 {[%clk 0:02:40.8]} 9... Nbd7 {[%clk 0:02:58.4]}
10. Rc1 {[%clk 0:02:37.6]} 10... c5 {[%clk 0:02:58.2]} 11. cxd5 {[%clk
0:02:32.9]} 11... Nxd5 {[%clk 0:02:57.4]} 12. Nc4 {[%clk 0:02:26.5]} 12... Qe7
{[%clk 0:02:45.9]} 13. e4 {[%clk 0:02:16.5]} 13... N5f6 {[%clk 0:02:44.3]} 14.
e5 {[%clk 0:02:10.1]} 14... Nd5 {[%clk 0:02:43.2]} 15. Nd6 {[%clk 0:01:58.3]}
15... Ba6 {[%clk 0:02:42.9]} 16. Re1 {[%clk 0:01:52.2]} 16... cxd4 {[%clk
0:02:42.3]} 17. Bxd4 {[%clk 0:01:46.8]} 17... Nxe5 {[%clk 0:02:12.1]} 18. Bxe5
{[%clk 0:01:36.3]} 18... Bxe5 {[%clk 0:02:11.3]} 19. Nf5 {[%clk 0:01:13]} 19...
gxf5 {[%clk 0:02:08.6]} 20. Nxe5 {[%clk 0:01:08.7]} 20... Rac8 {[%clk 0:01:29]}
21. Bxd5 {[%clk 0:00:59.6]} 21... exd5 {[%clk 0:01:28.7]} 22. Nc6 {[%clk
0:00:48.2]} 22... Qf6 {[%clk 0:01:19.4]} 23. Ne7+ {[%clk 0:00:45.6]} 23... Kh8
{[%clk 0:01:10.9]} 24. Nxc8 {[%clk 0:00:45.3]} 24... Bxc8 {[%clk 0:01:11.8]} 25.
Qxd5 {[%clk 0:00:41.9]} 25... Be6 {[%clk 0:01:12]} 26. Qe5 {[%clk 0:00:41.4]}
26... Kg7 {[%clk 0:01:09.8]} 27. Rc7 {[%clk 0:00:37.1]} 27... Ra8 {[%clk
0:01:09.1]} 28. f4 {[%clk 0:00:31.1]} 28... Qxe5 {[%clk 0:01:07.5]} 29. Rxe5
{[%clk 0:00:29.9]} 29... Kf6 {[%clk 0:01:07.9]} 30. Kf2 {[%clk 0:00:26.7]} 30...
h5 {[%clk 0:01:03.8]} 31. Re3 {[%clk 0:00:16.1]} 31... a5 {[%clk 0:01:03.8]} 32.
Rb7 {[%clk 0:00:08.7]} 32... Ra6 {[%clk 0:00:53.5]} 33. a4 {[%clk 0:00:05.3]}
33... Kg6 {[%clk 0:00:44]} 34. h4 {[%clk 0:00:02.2]} 34... Kf6 {[%clk
0:00:44.3]} 35. Ke1 {[%clk 0:00:02.4]} 35... Kg6 {[%clk 0:00:44.4]} 36. Kd2
{[%clk 0:00:02.6]} 36... Kf6 {[%clk 0:00:45.3]} 37. Kc3 {[%clk 0:00:02.7]} 37...
Ra8 {[%clk 0:00:21.7]} 38. Kb2 {[%clk 0:00:02.2]} 38... Rd8 {[%clk 0:00:20.5]}
39. Rxb6 {[%clk 0:00:02.2]} 39... Rd2+ {[%clk 0:00:20.8]} 40. Ka3 {[%clk
0:00:01.5]} 40... Rd1 {[%clk 0:00:14.4]} 41. Rb5 {[%clk 0:00:01.4]} 41... Ra1+
{[%clk 0:00:14.7]} 42. Kb2 {[%clk 0:00:01.3]} 42... Rg1 {[%clk 0:00:14.6]} 43.
Rxa5 {[%clk 0:00:00.5]} 43... Rg2+ {[%clk 0:00:15.5]} 44. Ka3 {[%clk 0:00:00.1]}
44... Rg1 {[%clk 0:00:16.4]} 0-1

[Event "Early-Titled-Tuesday-Blitz-May-14-2024"]
[Site "Chess.com"]
[Date "2024.05.14"]
[Round "4"]
[White "DishonorOnYourCow"]
[Black "ckgchess"]
[Result "1-0"]
[WhiteElo "2527"]
[BlackElo "2835"]
[TimeControl "180+1"]
[EndTime "8:41:14 PDT"]
[Termination "DishonorOnYourCow won by checkmate"]

1. d4 {[%clk 0:03:00.9]} 1... a5 {[%clk 0:02:58.5]} 2. c4 {[%clk 0:02:59.4]}
2... Ra6 {[%clk 0:02:58.5]} 3. Nc3 {[%clk 0:02:58]} 3... Rg6 {[%clk 0:02:58.1]}
4. e4 {[%clk 0:02:54.4]} 4... e6 {[%clk 0:02:57.9]} 5. Nf3 {[%clk 0:02:53.1]}
5... Bb4 {[%clk 0:02:57.7]} 6. Ne5 {[%clk 0:02:47.5]} 6... Rf6 {[%clk
0:02:51.5]} 7. Bd3 {[%clk 0:02:33.8]} 7... c5 {[%clk 0:02:51.4]} 8. a3 {[%clk
0:02:22.4]} 8... Bxc3+ {[%clk 0:02:41.7]} 9. bxc3 {[%clk 0:02:22.2]} 9... d6
{[%clk 0:02:42.3]} 10. Nf3 {[%clk 0:02:21.6]} 10... Ne7 {[%clk 0:02:40.8]} 11.
e5 {[%clk 0:02:14.8]} 11... dxe5 {[%clk 0:02:40.1]} 12. dxe5 {[%clk 0:02:15.7]}
12... Rg6 {[%clk 0:02:31.1]} 13. Bxg6 {[%clk 0:02:15.1]} 13... Qxd1+ {[%clk
0:02:31.4]} 14. Kxd1 {[%clk 0:02:16]} 14... hxg6 {[%clk 0:02:28.1]} 15. Rb1
{[%clk 0:02:13.7]} 15... Nd7 {[%clk 0:02:23.7]} 16. Be3 {[%clk 0:02:03.5]} 16...
b6 {[%clk 0:02:23.7]} 17. Ke2 {[%clk 0:01:58.1]} 17... Ba6 {[%clk 0:02:22.9]}
18. Nd2 {[%clk 0:01:56.9]} 18... Nc6 {[%clk 0:02:13.4]} 19. f4 {[%clk
0:01:47.4]} 19... g5 {[%clk 0:02:14]} 20. g3 {[%clk 0:01:43.8]} 20... Ke7 {[%clk
0:02:10.9]} 21. h4 {[%clk 0:01:38.8]} 21... gxf4 {[%clk 0:02:11]} 22. gxf4
{[%clk 0:01:38.6]} 22... g6 {[%clk 0:02:11.4]} 23. Kf2 {[%clk 0:01:36.3]} 23...
a4 {[%clk 0:01:59.6]} 24. Rxb6 {[%clk 0:01:15.9]} 24... Nxb6 {[%clk 0:01:56.3]}
25. Bxc5+ {[%clk 0:01:16.1]} 25... Kd7 {[%clk 0:01:51.5]} 26. Bxb6 {[%clk
0:01:16.7]} 26... Rb8 {[%clk 0:01:51.7]} 27. c5 {[%clk 0:01:16.6]} 27... Ne7
{[%clk 0:01:52.3]} 28. Ne4 {[%clk 0:00:59.7]} 28... Kc6 {[%clk 0:01:49.7]} 29.
Nd6 {[%clk 0:00:54]} 29... Nd5 {[%clk 0:01:47.9]} 30. Nxf7 {[%clk 0:00:47.8]}
30... Nxb6 {[%clk 0:01:46.6]} 31. cxb6 {[%clk 0:00:47.5]} 31... Rxb6 {[%clk
0:01:47.5]} 32. Rd1 {[%clk 0:00:39.8]} 32... Rb3 {[%clk 0:01:23.9]} 33. Nd8+
{[%clk 0:00:38.4]} 33... Kb5 {[%clk 0:01:24.6]} 34. Nxe6 {[%clk 0:00:38.4]}
34... Rxa3 {[%clk 0:01:21.5]} 35. Nc7+ {[%clk 0:00:34.8]} 35... Ka5 {[%clk
0:00:44.2]} 36. Nxa6 {[%clk 0:00:35.7]} 36... Kxa6 {[%clk 0:00:41.2]} 37. e6
{[%clk 0:00:35.7]} 37... Ra2+ {[%clk 0:00:34]} 38. Ke3 {[%clk 0:00:29.2]} 38...
Rc2 {[%clk 0:00:33.3]} 39. e7 {[%clk 0:00:14.6]} 39... Rxc3+ {[%clk 0:00:33.3]}
40. Rd3 {[%clk 0:00:14.3]} 40... Rc1 {[%clk 0:00:29]} 41. Kd2 {[%clk 0:00:13.1]}
41... Rc7 {[%clk 0:00:14.1]} 42. e8=Q {[%clk 0:00:12.3]} 42... g5 {[%clk
0:00:11.8]} 43. Qxa4+ {[%clk 0:00:12.2]} 43... Kb7 {[%clk 0:00:11.9]} 44. Rb3+
{[%clk 0:00:12.1]} 44... Kc8 {[%clk 0:00:11]} 45. Qe8# {[%clk 0:00:12.1]} 1-0

[Event "Early-Titled-Tuesday-Blitz-May-14-2024"]
[Site "Chess.com"]
[Date "2024.05.14"]
[Round "4"]
[White "Grossboss19"]
[Black "nrvisakh"]
[Result "0-1"]
[WhiteElo "2630"]
[BlackElo "2926"]
[TimeControl "180+1"]
[EndTime "8:41:16 PDT"]
[Termination "nrvisakh won on time"]

1. Nf3 {[%clk 0:02:32.8]} 1... Nf6 {[%clk 0:02:30.6]} 2. b3 {[%clk 0:02:32.4]}
2... a5 {[%clk 0:02:23.7]} 3. a4 {[%clk 0:02:28]} 3... g6 {[%clk 0:02:22.2]} 4.
Bb2 {[%clk 0:02:27.5]} 4... Bg7 {[%clk 0:02:23.1]} 5. g3 {[%clk 0:02:28.1]} 5...
d6 {[%clk 0:02:22]} 6. Bg2 {[%clk 0:02:28.6]} 6... e5 {[%clk 0:02:22.9]} 7. O-O
{[%clk 0:02:28.9]} 7... O-O {[%clk 0:02:21.9]} 8. d4 {[%clk 0:02:28.3]} 8... Nc6
{[%clk 0:02:18.9]} 9. c4 {[%clk 0:02:22.5]} 9... Bg4 {[%clk 0:02:16.3]} 10. Nbd2
{[%clk 0:02:15.9]} 10... exd4 {[%clk 0:02:14]} 11. Nxd4 {[%clk 0:02:15]} 11...
Qe8 {[%clk 0:02:13]} 12. N4f3 {[%clk 0:01:49.3]} 12... Nb4 {[%clk 0:02:07.3]}
13. Re1 {[%clk 0:01:46.1]} 13... Qe7 {[%clk 0:01:58.4]} 14. h3 {[%clk
0:01:39.4]} 14... Bd7 {[%clk 0:01:55]} 15. Bc3 {[%clk 0:01:25.1]} 15... Rae8
{[%clk 0:01:50.1]} 16. Qc1 {[%clk 0:01:23.8]} 16... Bc6 {[%clk 0:01:47.5]} 17.
Qb2 {[%clk 0:01:20.5]} 17... Nh5 {[%clk 0:01:36.2]} 18. Bxg7 {[%clk 0:01:18.2]}
18... Nxg7 {[%clk 0:01:37.1]} 19. Rad1 {[%clk 0:01:11.1]} 19... f5 {[%clk
0:01:34.8]} 20. Nd4 {[%clk 0:01:04.7]} 20... Bxg2 {[%clk 0:01:32.8]} 21. Kxg2
{[%clk 0:01:05.6]} 21... Qf6 {[%clk 0:01:28.9]} 22. Qc3 {[%clk 0:00:57.6]} 22...
Ne6 {[%clk 0:01:10.4]} 23. N2f3 {[%clk 0:00:44.1]} 23... Nc5 {[%clk 0:01:10.2]}
24. e3 {[%clk 0:00:37.9]} 24... Rf7 {[%clk 0:01:00.6]} 25. Rb1 {[%clk 0:00:37]}
25... Rfe7 {[%clk 0:00:59.2]} 26. Nb5 {[%clk 0:00:32.2]} 26... Qe6 {[%clk
0:00:53.6]} 27. Red1 {[%clk 0:00:30.7]} 27... Qe4 {[%clk 0:00:51.5]} 28. Qd4
{[%clk 0:00:27.9]} 28... Qc6 {[%clk 0:00:48.2]} 29. Qh4 {[%clk 0:00:23.3]} 29...
Ne6 {[%clk 0:00:34.9]} 30. Nd4 {[%clk 0:00:18.2]} 30... Nxd4 {[%clk 0:00:34.3]}
31. Qxd4 {[%clk 0:00:18.1]} 31... g5 {[%clk 0:00:28.7]} 32. g4 {[%clk
0:00:14.7]} 32... Rf8 {[%clk 0:00:24.4]} 33. Kg3 {[%clk 0:00:08.7]} 33... Re4
{[%clk 0:00:19.8]} 34. Qc3 {[%clk 0:00:07.9]} 34... fxg4 {[%clk 0:00:20.2]} 35.
Nxg5 {[%clk 0:00:08.4]} 35... Re5 {[%clk 0:00:20.2]} 36. f4 {[%clk 0:00:04.7]}
36... Rxg5 {[%clk 0:00:16.4]} 37. hxg4 {[%clk 0:00:02.9]} 37... Rg7 {[%clk
0:00:13.8]} 38. g5 {[%clk 0:00:02.7]} 38... Qe4 {[%clk 0:00:12.7]} 39. Rd4
{[%clk 0:00:01.5]} 39... Qxb1 {[%clk 0:00:11]} 0-1

[Event "Early-Titled-Tuesday-Blitz-May-14-2024"]
[Site "Chess.com"]
[Date "2024.05.14"]
[Round "4"]
[White "Meri-Arabidze"]
[Black "hakanazeri2"]
[Result "0-1"]
[WhiteElo "2699"]
[BlackElo "2569"]
[TimeControl "180+1"]
[EndTime "8:41:18 PDT"]
[Termination "hakanazeri2 won on time"]

1. Nf3 {[%clk 0:03:00.9]} 1... d5 {[%clk 0:02:36.7]} 2. c4 {[%clk 0:03:01.2]}
2... d4 {[%clk 0:02:36.5]} 3. b4 {[%clk 0:03:00.4]} 3... c5 {[%clk 0:02:33.1]}
4. b5 {[%clk 0:03:00.8]} 4... Nf6 {[%clk 0:02:32.2]} 5. g3 {[%clk 0:03:01.1]}
5... b6 {[%clk 0:02:28.9]} 6. Bg2 {[%clk 0:03:01]} 6... Bb7 {[%clk 0:02:29.5]}
7. O-O {[%clk 0:03:01]} 7... Nbd7 {[%clk 0:02:30.2]} 8. d3 {[%clk 0:03:01.6]}
8... e5 {[%clk 0:02:30.4]} 9. e3 {[%clk 0:03:00.5]} 9... Be7 {[%clk 0:02:27.1]}
10. a4 {[%clk 0:03:01.1]} 10... O-O {[%clk 0:02:24.3]} 11. a5 {[%clk 0:03:00.9]}
11... bxa5 {[%clk 0:02:23.2]} 12. Bd2 {[%clk 0:02:51.2]} 12... dxe3 {[%clk
0:02:19.2]} 13. Bxe3 {[%clk 0:02:47.6]} 13... a6 {[%clk 0:02:11.4]} 14. Nc3
{[%clk 0:02:33]} 14... Qc7 {[%clk 0:02:05.5]} 15. Qa4 {[%clk 0:02:14]} 15...
axb5 {[%clk 0:01:54.1]} 16. Nxb5 {[%clk 0:02:14.9]} 16... Qc6 {[%clk 0:01:51.8]}
17. Nh4 {[%clk 0:02:11.1]} 17... Qb6 {[%clk 0:01:51]} 18. Nf5 {[%clk 0:02:08]}
18... Rfe8 {[%clk 0:01:48.6]} 19. Bxb7 {[%clk 0:02:01.1]} 19... Qxb7 {[%clk
0:01:48.4]} 20. Nbd6 {[%clk 0:02:00.1]} 20... Bxd6 {[%clk 0:01:24.5]} 21. Nxd6
{[%clk 0:02:01]} 21... Qf3 {[%clk 0:01:25.1]} 22. Nxe8 {[%clk 0:02:00.3]} 22...
Rxe8 {[%clk 0:01:25.8]} 23. Qd1 {[%clk 0:01:58.5]} 23... Qa8 {[%clk 0:01:24.6]}
24. Bd2 {[%clk 0:01:54.4]} 24... h5 {[%clk 0:01:24.5]} 25. Rxa5 {[%clk
0:01:53.3]} 25... Qc6 {[%clk 0:01:25.1]} 26. Bg5 {[%clk 0:01:49.3]} 26... e4
{[%clk 0:01:23.4]} 27. Bxf6 {[%clk 0:01:46]} 27... Nxf6 {[%clk 0:01:23]} 28.
dxe4 {[%clk 0:01:43.7]} 28... Rxe4 {[%clk 0:01:20.8]} 29. Re1 {[%clk 0:01:36.6]}
29... Rd4 {[%clk 0:01:16.1]} 30. Qe2 {[%clk 0:01:30.9]} 30... h4 {[%clk
0:01:12.3]} 31. Rb5 {[%clk 0:01:05.2]} 31... g6 {[%clk 0:01:06.8]} 32. Rb8+
{[%clk 0:00:47.4]} 32... Kg7 {[%clk 0:01:06.3]} 33. Qe7 {[%clk 0:00:42.9]} 33...
Nd7 {[%clk 0:01:02.1]} 34. Rb3 {[%clk 0:00:19.6]} 34... h3 {[%clk 0:00:57.8]}
35. f3 {[%clk 0:00:20]} 35... Rxc4 {[%clk 0:00:55.7]} 36. Rd3 {[%clk 0:00:19.6]}
36... Rd4 {[%clk 0:00:50.2]} 37. Rxd4 {[%clk 0:00:19.9]} 37... cxd4 {[%clk
0:00:51.1]} 38. Qe4 {[%clk 0:00:20.4]} 38... Qc5 {[%clk 0:00:48]} 39. Rd1 {[%clk
0:00:17.2]} 39... d3+ {[%clk 0:00:47.9]} 40. Kf1 {[%clk 0:00:16.8]} 40... Qc2
{[%clk 0:00:47.5]} 41. Qxd3 {[%clk 0:00:11.2]} 41... Qg2+ {[%clk 0:00:47]} 42.
Ke1 {[%clk 0:00:11.7]} 42... Ne5 {[%clk 0:00:39.3]} 43. Qc3 {[%clk 0:00:09.9]}
43... f6 {[%clk 0:00:38.3]} 44. Rd8 {[%clk 0:00:04.8]} 44... Nxf3+ {[%clk
0:00:36.4]} 45. Kd1 {[%clk 0:00:05.2]} 45... Qh1+ {[%clk 0:00:30.6]} 46. Kc2
{[%clk 0:00:04.7]} 46... Qxh2+ {[%clk 0:00:31.1]} 47. Kb3 {[%clk 0:00:04.8]}
47... Qxg3 {[%clk 0:00:31.8]} 48. Rd7+ {[%clk 0:00:02.8]} 48... Kh6 {[%clk
0:00:32.1]} 49. Qe3+ {[%clk 0:00:01.3]} 49... g5 {[%clk 0:00:30.8]} 50. Rd3
{[%clk 0:00:01.2]} 50... h2 {[%clk 0:00:30.9]} 0-1

[Event "Early-Titled-Tuesday-Blitz-May-14-2024"]
[Site "Chess.com"]
[Date "2024.05.14"]
[Round "4"]
[White "tarno17"]
[Black "rollercoaster29"]
[Result "0-1"]
[WhiteElo "2164"]
[BlackElo "2457"]
[TimeControl "180+1"]
[EndTime "8:41:18 PDT"]
[Termination "rollercoaster29 won by checkmate"]

1. e4 {[%clk 0:03:00.9]} 1... c5 {[%clk 0:02:54.2]} 2. Nf3 {[%clk 0:03:00]} 2...
d6 {[%clk 0:02:54.5]} 3. Bb5+ {[%clk 0:02:59.5]} 3... Bd7 {[%clk 0:02:54.6]} 4.
Bxd7+ {[%clk 0:02:59.3]} 4... Nxd7 {[%clk 0:02:55.5]} 5. O-O {[%clk 0:03:00]}
5... Ngf6 {[%clk 0:02:55.8]} 6. d3 {[%clk 0:02:56.2]} 6... g6 {[%clk 0:02:55.7]}
7. Nc3 {[%clk 0:02:55.1]} 7... Bg7 {[%clk 0:02:55.6]} 8. Ne2 {[%clk 0:02:55.8]}
8... O-O {[%clk 0:02:54.1]} 9. Ng3 {[%clk 0:02:55.6]} 9... b5 {[%clk 0:02:50.3]}
10. Be3 {[%clk 0:02:43.8]} 10... Ng4 {[%clk 0:02:48.6]} 11. c3 {[%clk
0:02:35.1]} 11... Rb8 {[%clk 0:02:31.4]} 12. d4 {[%clk 0:02:19.8]} 12... b4
{[%clk 0:02:20.2]} 13. Bf4 {[%clk 0:01:47.3]} 13... Qb6 {[%clk 0:01:44.1]} 14.
h3 {[%clk 0:01:24.3]} 14... Ngf6 {[%clk 0:01:39.1]} 15. Qd2 {[%clk 0:01:15.2]}
15... a5 {[%clk 0:01:26.6]} 16. e5 {[%clk 0:00:59.7]} 16... Nd5 {[%clk
0:01:21.2]} 17. Bh6 {[%clk 0:00:59.6]} 17... bxc3 {[%clk 0:01:10.8]} 18. bxc3
{[%clk 0:00:58.6]} 18... Qb2 {[%clk 0:01:08.8]} 19. Qg5 {[%clk 0:00:49.9]} 19...
f6 {[%clk 0:00:27.9]} 20. exf6 {[%clk 0:00:47.9]} 20... N7xf6 {[%clk 0:00:27.1]}
21. Bxg7 {[%clk 0:00:41.7]} 21... Kxg7 {[%clk 0:00:27.1]} 22. Nf5+ {[%clk
0:00:42.3]} 22... Kh8 {[%clk 0:00:25.4]} 23. Nh6 {[%clk 0:00:34]} 23... Qc2
{[%clk 0:00:18.6]} 24. dxc5 {[%clk 0:00:32]} 24... dxc5 {[%clk 0:00:16.6]} 25.
Ne5 {[%clk 0:00:30.7]} 25... Kg7 {[%clk 0:00:11.4]} 26. Nf5+ {[%clk 0:00:29.1]}
26... Qxf5 {[%clk 0:00:10.9]} 27. Qg3 {[%clk 0:00:22.7]} 27... Nf4 {[%clk
0:00:11.2]} 28. Nc6 {[%clk 0:00:18.8]} 28... Ne2+ {[%clk 0:00:11.1]} 29. Kh2
{[%clk 0:00:16]} 29... Nxg3 {[%clk 0:00:12]} 30. fxg3 {[%clk 0:00:16.7]} 30...
Qe4 {[%clk 0:00:09.9]} 31. Nxb8 {[%clk 0:00:16.5]} 31... Rxb8 {[%clk 0:00:09.7]}
32. Rae1 {[%clk 0:00:17.4]} 32... Qb7 {[%clk 0:00:09.3]} 33. Re6 {[%clk
0:00:17.4]} 33... Rf8 {[%clk 0:00:09]} 34. Rfe1 {[%clk 0:00:17.8]} 34... Rf7
{[%clk 0:00:09.5]} 35. g4 {[%clk 0:00:18.5]} 35... Nd5 {[%clk 0:00:09.7]} 36. g3
{[%clk 0:00:18]} 36... Nxc3 {[%clk 0:00:09.5]} 37. Kg1 {[%clk 0:00:16.4]} 37...
Nb5 {[%clk 0:00:08.9]} 38. g5 {[%clk 0:00:16.5]} 38... Nd4 {[%clk 0:00:09.4]}
39. R6e3 {[%clk 0:00:15]} 39... Nf3+ {[%clk 0:00:09.7]} 40. Kf2 {[%clk
0:00:15.1]} 40... Nxe1+ {[%clk 0:00:09.8]} 41. Kxe1 {[%clk 0:00:16]} 41... Qh1+
{[%clk 0:00:09.1]} 42. Kd2 {[%clk 0:00:16.3]} 42... Rf2+ {[%clk 0:00:09.1]} 43.
Kd3 {[%clk 0:00:16.5]} 43... Qd5+ {[%clk 0:00:09.1]} 44. Kc3 {[%clk 0:00:16.8]}
44... Qd4+ {[%clk 0:00:07.3]} 45. Kb3 {[%clk 0:00:17.7]} 45... Rb2+ {[%clk
0:00:07.1]} 46. Ka3 {[%clk 0:00:17.9]} 46... Qb4# {[%clk 0:00:07.8]} 0-1

[Event "Early-Titled-Tuesday-Blitz-May-14-2024"]
[Site "Chess.com"]
[Date "2024.05.14"]
[Round "4"]
[White "laysa_latifah"]
[Black "TregubovP"]
[Result "0-1"]
[WhiteElo "2539"]
[BlackElo "2713"]
[TimeControl "180+1"]
[EndTime "8:41:19 PDT"]
[Termination "TregubovP won by resignation"]

1. e4 {[%clk 0:03:00.9]} 1... c5 {[%clk 0:02:44.7]} 2. Nf3 {[%clk 0:02:59.6]}
2... e6 {[%clk 0:02:44]} 3. c3 {[%clk 0:02:56]} 3... d5 {[%clk 0:02:42.9]} 4.
exd5 {[%clk 0:02:55.4]} 4... exd5 {[%clk 0:02:43.4]} 5. d4 {[%clk 0:02:55.9]}
5... Nc6 {[%clk 0:02:43.9]} 6. Bb5 {[%clk 0:02:54.3]} 6... Bd6 {[%clk
0:02:44.2]} 7. O-O {[%clk 0:02:54]} 7... Ne7 {[%clk 0:02:44.2]} 8. dxc5 {[%clk
0:02:53.4]} 8... Bxc5 {[%clk 0:02:44.5]} 9. Nbd2 {[%clk 0:02:51.7]} 9... O-O
{[%clk 0:02:45]} 10. Nb3 {[%clk 0:02:52.2]} 10... Bd6 {[%clk 0:02:45.5]} 11. Bg5
{[%clk 0:02:48]} 11... Bg4 {[%clk 0:02:38.1]} 12. h3 {[%clk 0:02:47]} 12... Bh5
{[%clk 0:02:37.7]} 13. Re1 {[%clk 0:02:37.8]} 13... Qc7 {[%clk 0:02:35]} 14. Be2
{[%clk 0:02:30.4]} 14... h6 {[%clk 0:02:27.7]} 15. Be3 {[%clk 0:02:15.2]} 15...
Rad8 {[%clk 0:02:22.5]} 16. Nfd4 {[%clk 0:02:12.4]} 16... Bxe2 {[%clk
0:02:14.1]} 17. Qxe2 {[%clk 0:02:13.2]} 17... a6 {[%clk 0:02:12.2]} 18. Rad1
{[%clk 0:01:59.7]} 18... Ne5 {[%clk 0:01:57.1]} 19. Bc1 {[%clk 0:01:58.9]} 19...
Nc4 {[%clk 0:01:51.2]} 20. Qg4 {[%clk 0:01:56.9]} 20... Ng6 {[%clk 0:01:41.2]}
21. Nf5 {[%clk 0:01:54]} 21... Rfe8 {[%clk 0:01:18.5]} 22. Nbd4 {[%clk 0:01:24]}
22... Bf8 {[%clk 0:01:10.7]} 23. h4 {[%clk 0:01:19]} 23... Rxe1+ {[%clk
0:01:08]} 24. Rxe1 {[%clk 0:01:18.7]} 24... Kh8 {[%clk 0:01:04.6]} 25. h5 {[%clk
0:01:14.3]} 25... Nge5 {[%clk 0:01:04.7]} 26. Qg3 {[%clk 0:01:14.5]} 26... Re8
{[%clk 0:00:27.6]} 27. f4 {[%clk 0:01:07.2]} 27... f6 {[%clk 0:00:20.2]} 28.
fxe5 {[%clk 0:01:01.3]} 28... fxe5 {[%clk 0:00:20.4]} 29. Nf3 {[%clk 0:01:00.2]}
29... Qf7 {[%clk 0:00:18.9]} 30. N3h4 {[%clk 0:00:58.6]} 30... Qxh5 {[%clk
0:00:16.7]} 31. Ng6+ {[%clk 0:00:51.4]} 31... Kg8 {[%clk 0:00:14.2]} 32. Rf1
{[%clk 0:00:28]} 32... Bc5+ {[%clk 0:00:14]} 33. Nd4 {[%clk 0:00:19.3]} 33...
exd4 {[%clk 0:00:11.6]} 34. Nh4 {[%clk 0:00:12.9]} 34... dxc3+ {[%clk 0:00:10]}
35. Kh1 {[%clk 0:00:12.4]} 35... cxb2 {[%clk 0:00:10.1]} 36. Bf4 {[%clk
0:00:09.3]} 36... Be7 {[%clk 0:00:09]} 37. Kg1 {[%clk 0:00:07.3]} 37... Qxh4
{[%clk 0:00:08.6]} 38. Qd3 {[%clk 0:00:05.8]} 38... Bc5+ {[%clk 0:00:07.9]} 0-1